{"text_format":"1","workbook":"xlsx","n_sheets":4,"sheets":["totaal lijst","Cluster 1","Cluster 2","Clusters"],"not_rendered":{"charts":0,"images":0,"macros":1,"external_links":0,"defined_names":2,"comments":0,"pivot_tables":0},"unopened":[],"bounds":{"document_bytes":16777216,"sheet_cells":100000,"rows_first":2000,"rows_last":500,"rows_between":2000,"halvings":0,"cell_chars":16384,"cell_head_chars":4096},"cells_cut":0,"cells_raw":0,"read":"whole","date_system":"1900"}

{"sheet":"totaal lijst","index":0,"n_rows":39,"n_cols":22,"rows_kept":39,"cut":false,"hidden":false,"merged":[]}
[null,"sub",null,null,null,null,null,null,null,null,{"$f":"COUNTIF(A:A,11)&a","v":{"$error":"#NAME?"}},null,null,null,null,null,null,null,null,null,null,"Clusters"]
["cluster","cluster","Voornaam","Achternaam","Bedrijf","Functie","TEL Nr","Mail","adres",null,null,null,null,null,null,null,null,null,null,null,null,1]
[null,null,null,null,null,null,null,null,null,null,null,null,null,null,null,null,null,null,null,null,null,2]
[1,"A","Q","A","qw","aaa",999,{"$f":"ROW()","v":4},null,null,null,null,null,null,null,null,null,null,null,null,null,3]
[1,"A","W","S","we","aaa",null,{"$f":"ROW()","v":5},null,null,null,null,null,null,null,null,null,null,null,null,null,4]
[1,"A","E","D","er","bbb",null,{"$f":"ROW()","v":6},null,"de gegevens in kolom B, C, D, F en H in de rij met een 1 als clusternaam dienen gekopieerd te worden naar tabblad CLUSTER 1",null,null,null,null,null,null,null,null,null,null,null,5]
[1,"B","R","F","rt","ccc",null,{"$f":"ROW()","v":7},null,null,null,null,null,null,null,null,null,null,null,null,null,6]
[1,"B","T","G","ty","sss",null,{"$f":"ROW()","v":8},null,null,null,null,null,null,null,null,null,null,null,null,null,7]
[1,"B","Y","H","yu","rrr",null,{"$f":"ROW()","v":9},null,null,null,null,null,null,null,null,null,null,null,null,null,8]
[2,"A","U","J","ui","sss",null,{"$f":"ROW()","v":10},null,null,null,null,null,null,null,null,null,null,null,null,null,9]
[2,"A","I","K","io","bbb",null,{"$f":"ROW()","v":11},null,null,null,null,null,null,null,null,null,null,null,null,null,10]
[2,"A","O","L","op","ggg",null,{"$f":"ROW()","v":12},null,"de gegevens in kolom B, C, D, F en H in de rij met een 2 als clusternaam dienen gekopieerd te worden naar tabblad CLUSTER 2"]
[2,"B","P","M","pl","aaa",null,{"$f":"ROW()","v":13}]
[2,"B","A","N","lk","ccc",null,{"$f":"ROW()","v":14}]
[2,"B","S","B","kj","bbb",null,{"$f":"ROW()","v":15}]
[3,"A","D","V","jh","ggg",null,{"$f":"ROW()","v":16}]
[3,"A","F","C","hg","ggg",null,{"$f":"ROW()","v":17}]
[3,"A","G","X","gf","sss",null,{"$f":"ROW()","v":18}]
[3,"B","H","Z","fd","aaa",null,{"$f":"ROW()","v":19}]
[3,"B","J","P","ds","ccc",null,{"$f":"ROW()","v":20}]
[3,"B","K","O","sa","bbb",null,{"$f":"ROW()","v":21}]
[4,"A","L","I","az","bbb",null,{"$f":"ROW()","v":22}]
[4,"A","Z","U","zx","ccc",null,{"$f":"ROW()","v":23}]
[4,"A","X","Y","xc","ccc",null,{"$f":"ROW()","v":24}]
[4,"B","C","T","cv","ccc",null,{"$f":"ROW()","v":25}]
[4,"B","V","R","vb","aaa",null,{"$f":"ROW()","v":26}]
[4,"B","B","E","bn","ggg",null,{"$f":"ROW()","v":27}]
[5,"A","N","W","nm","sss",null,{"$f":"ROW()","v":28}]
[5,"A","M","Q","mq","ttt",null,{"$f":"ROW()","v":29}]
[5,"A","L","S","wt","ccc",null,{"$f":"ROW()","v":30}]
[5,"B","J","F","ey","ddd",null,{"$f":"ROW()","v":31}]
[5,"B","G","H","ru","sss",null,{"$f":"ROW()","v":32}]
[5,"B","D","K","ti","aaa",null,{"$f":"ROW()","v":33}]
[6,"A","A","I","yo","aaa",null,{"$f":"ROW()","v":34}]
[6,"A","O","B","pj","ggg",null,{"$f":"ROW()","v":35}]
[6,"A","U","T","kg","ggg",null,{"$f":"ROW()","v":36}]
[6,"B","T","C","hd","ddd",null,{"$f":"ROW()","v":37}]
[6,"B","E","E","fa","sss",null,{"$f":"ROW()","v":38}]
[6,"B","C","Z","sc","ccc",null,{"$f":"ROW()","v":39}]

{"sheet":"Cluster 1","index":1,"n_rows":8,"n_cols":9,"rows_kept":8,"cut":false,"hidden":false,"merged":[[6,8,8,12]]}
["CLUSTER 1","sub"]
[null,"cluster","Voornaam","Achternaam","Functie","Mail"]
[null,"A","Q","A","aaa",4]
[null,"A","W","S","aaa",5]
[null,"A","E","D","bbb",6]
[null,"B","R","F","ccc",7]
[null,"B","T","G","sss",8,null,null,"Dit zou het resultaat moeten zijn van de zoekfunctie in het eerste tabblad"]
[null,"B","Y","H","rrr",9]

{"sheet":"Cluster 2","index":2,"n_rows":14,"n_cols":9,"rows_kept":14,"cut":false,"hidden":false,"merged":[[13,8,15,12]]}
["CLUSTER 2","sub"]
[null,"cluster","Voornaam","Achternaam","Functie","Mail"]
[null,"A","U","J","sss",10]
[null,"A","I","K","bbb",11]
[null,"A","O","L","ggg",12]
[null,"B","P","M","aaa",13]
[null,"B","A","N","ccc",14]
[null,"B","S","B","bbb",15]
[]
[]
[]
[]
[]
[null,null,null,null,null,null,null,null,"Dit zou het resultaat moeten zijn van de zoekfunctie in het eerste tabblad"]

{"sheet":"Clusters","index":3,"n_rows":8,"n_cols":6,"rows_kept":8,"cut":false,"hidden":false,"merged":[]}
["CLUSTER","sub"]
[1,"cluster","Voornaam","Achternaam","Functie","Mail"]
[null,"A","Q","A","aaa",4]
[null,"A","W","S","aaa",5]
[null,"A","E","D","bbb",6]
[null,"B","R","F","ccc",7]
[null,"B","T","G","sss",8]
[null,"B","Y","H","rrr",9]